Workbook

Sheet 初选人员体检政审名单
A1: 2022年合肥市公开招考社区“小管家”-蜀山考区（西园街道、琥珀街道、五里墩街道、三里庵街道）
A2: 序号 | B2: 报考区域 | C2: 报考街道 | D2: 准考证号 | E2: 笔试成绩 | F2: 面试室号 | G2: 抽签号 | H2: 面试初始成绩 | I2: 修正系数 | J2: 面试最终成绩 | K2: 合成成绩 | L2: 备注
A3: 1 | B3: 蜀山区 | C3: 西园街道 | D3: 99060100309 | E3: 67.7 | F3: 面试室一 | G3: 27 | H3: 77.44 | I3: 1 | J3: =H3*I3 -> 77.44 | K3: =E3*0.6+J3*0.4 -> 71.60
A4: 2 | B4: 蜀山区 | C4: 西园街道 | D4: 99060100112 | E4: 66.5 | F4: 面试室一 | G4: 3 | H4: 75.5 | I4: 1 | J4: 75.5 | K4: =E4*0.6+J4*0.4 -> 70.10
A5: 3 | B5: 蜀山区 | C5: 西园街道 | D5: 99060100101 | E5: 64.1 | F5: 面试室一 | G5: 1 | H5: 77.96 | I5: 1 | J5: 77.96 | K5: 69.64
A6: 4 | B6: 蜀山区 | C6: 西园街道 | D6: 99060100312 | E6: 61.9 | F6: 面试室二 | G6: 20 | H6: 79.08 | I6: 1 | J6: 79.08 | K6: 68.77
A7: 5 | B7: 蜀山区 | C7: 西园街道 | D7: 99060100217 | E7: 62.4 | F7: 面试室一 | G7: 25 | H7: 77.06 | I7: 1 | J7: 77.06 | K7: 68.26
A8: 6 | B8: 蜀山区 | C8: 西园街道 | D8: 99060100305 | E8: 60.9 | F8: 面试室二 | G8: 19 | H8: 78.38 | I8: 1 | J8: 78.38 | K8: 67.89
A9: 7 | B9: 蜀山区 | C9: 西园街道 | D9: 99060100226 | E9: 61 | F9: 面试室二 | G9: 2 | H9: 77.42 | I9: 1 | J9: 77.42 | K9: 67.57
A10: 8 | B10: 蜀山区 | C10: 西园街道 | D10: 99060100124 | E10: 61.3 | F10: 面试室一 | G10: 37 | H10: 76.08 | I10: 1 | J10: 76.08 | K10: 67.21
A11: 9 | B11: 蜀山区 | C11: 西园街道 | D11: 99060100319 | E11: 62 | F11: 面试室一 | G11: 11 | H11: 74.96 | I11: 1 | J11: 74.96 | K11: 67.18
A12: 10 | B12: 蜀山区 | C12: 西园街道 | D12: 99060100203 | E12: 60.4 | F12: 面试室一 | G12: 35 | H12: 77.36 | I12: 1 | J12: 77.36 | K12: 67.18
A13: 11 | B13: 蜀山区 | C13: 西园街道 | D13: 99060100208 | E13: 63.1 | F13: 面试室一 | G13: 29 | H13: 73.28 | I13: 1 | J13: 73.28 | K13: 67.17
A14: 12 | B14: 蜀山区 | C14: 西园街道 | D14: 99060100323 | E14: 59 | F14: 面试室二 | G14: 9 | H14: 78.94 | I14: 1 | J14: 78.94 | K14: 66.98
A15: 13 | B15: 蜀山区 | C15: 西园街道 | D15: 99060100125 | E15: 60.6 | F15: 面试室一 | G15: 5 | H15: 76.52 | I15: 1 | J15: 76.52 | K15: 66.97
A16: 14 | B16: 蜀山区 | C16: 西园街道 | D16: 99060100103 | E16: 61.3 | F16: 面试室一 | G16: 12 | H16: 74.88 | I16: 1 | J16: 74.88 | K16: 66.73
A17: 15 | B17: 蜀山区 | C17: 西园街道 | D17: 99060100111 | E17: 59.1 | F17: 面试室一 | G17: 30 | H17: 75.84 | I17: 1 | J17: 75.84 | K17: 65.80
A18: 16 | B18: 蜀山区 | C18: 西园街道 | D18: 99060100210 | E18: 58.1 | F18: 面试室一 | G18: 33 | H18: 75.84 | I18: 1 | J18: 75.84 | K18: 65.20
A19: 17 | B19: 蜀山区 | C19: 西园街道 | D19: 99060100414 | E19: 58 | F19: 面试室一 | G19: 6 | H19: 75.58 | I19: 1 | J19: 75.58 | K19: 65.03
A20: 18 | B20: 蜀山区 | C20: 西园街道 | D20: 99060100230 | E20: 59.7 | F20: 面试室二 | G20: 4 | H20: 72.5 | I20: 1 | J20: 72.5 | K20: 64.82
A21: 19 | B21: 蜀山区 | C21: 西园街道 | D21: 99060100108 | E21: 58.7 | F21: 面试室一 | G21: 13 | H21: 73.58 | I21: 1 | J21: 73.58 | K21: 64.65
A22: 20 | B22: 蜀山区 | C22: 西园街道 | D22: 99060100310 | E22: 56.7 | F22: 面试室二 | G22: 6 | H22: 75.94 | I22: 1 | J22: 75.94 | K22: 64.40
A23: 21 | B23: 蜀山区 | C23: 西园街道 | D23: 99060100307 | E23: 55 | F23: 面试室一 | G23: 24 | H23: 78 | I23: 1 | J23: 78 | K23: 64.20
A24: 22 | B24: 蜀山区 | C24: 西园街道 | D24: 99060100209 | E24: 53.7 | F24: 面试室二 | G24: 12 | H24: 79.42 | I24: 1 | J24: 79.42 | K24: 63.99
A25: 23 | B25: 蜀山区 | C25: 西园街道 | D25: 99060100401 | E25: 54.3 | F25: 面试室一 | G25: 18 | H25: 77.74 | I25: 1 | J25: 77.74 | K25: 63.68
A26: 24 | B26: 蜀山区 | C26: 西园街道 | D26: 99060100313 | E26: 57.4 | F26: 面试室一 | G26: 28 | H26: 72.72 | I26: 1 | J26: 72.72 | K26: 63.53
A27: 25 | B27: 蜀山区 | C27: 西园街道 | D27: 99060100216 | E27: 53.5 | F27: 面试室一 | G27: 23 | H27: 78.34 | I27: 1 | J27: 78.34 | K27: 63.44
A28: 26 | B28: 蜀山区 | C28: 西园街道 | D28: 99060100204 | E28: 52.9 | F28: 面试室一 | G28: 15 | H28: 78.44 | I28: 1 | J28: 78.44 | K28: 63.12
A29: 27 | B29: 蜀山区 | C29: 西园街道 | D29: 99060100411 | E29: 57.5 | F29: 面试室二 | G29: 5 | H29: 71.4 | I29: 1 | J29: 71.4 | K29: 63.06
A30: 28 | B30: 蜀山区 | C30: 西园街道 | D30: 99060100127 | E30: 55.8 | F30: 面试室二 | G30: 10 | H30: 73.54 | I30: 1 | J30: 73.54 | K30: 62.90
A31: 29 | B31: 蜀山区 | C31: 西园街道 | D31: 99060100120 | E31: 56.6 | F31: 面试室一 | G31: 22 | H31: 72.22 | I31: 1 | J31: 72.22 | K31: 62.85
A32: 30 | B32: 蜀山区 | C32: 西园街道 | D32: 99060100118 | E32: 53.9 | F32: 面试室一 | G32: 8 | H32: 75.34 | I32: 1 | J32: 75.34 | K32: 62.48
A33: 31 | B33: 蜀山区 | C33: 西园街道 | D33: 99060100222 | E33: 53.6 | F33: 面试室二 | G33: 11 | H33: 75.62 | I33: 1 | J33: 75.62 | K33: 62.41
A34: 32 | B34: 蜀山区 | C34: 西园街道 | D34: 99060100402 | E34: 52.9 | F34: 面试室一 | G34: 19 | H34: 75.9 | I34: 1 | J34: 75.9 | K34: 62.10
A35: 33 | B35: 蜀山区 | C35: 西园街道 | D35: 99060100201 | E35: 51 | F35: 面试室二 | G35: 1 | H35: 78.66 | I35: 1 | J35: 78.66 | K35: 62.06
A36: 34 | B36: 蜀山区 | C36: 西园街道 | D36: 99060100330 | E36: 52.7 | F36: 面试室二 | G36: 8 | H36: 74.74 | I36: 1 | J36: 74.74 | K36: 61.52
A37: 35 | B37: 蜀山区 | C37: 西园街道 | D37: 99060100109 | E37: 52.6 | F37: 面试室一 | G37: 7 | H37: 74.56 | I37: 1 | J37: 74.56 | K37: 61.38
A38: 36 | B38: 蜀山区 | C38: 西园街道 | D38: 99060100318 | E38: 52.4 | F38: 面试室二 | G38: 16 | H38: 74.36 | I38: 1 | J38: 74.36 | K38: 61.18
A39: 37 | B39: 蜀山区 | C39: 西园街道 | D39: 99060100107 | E39: 52.7 | F39: 面试室一 | G39: 9 | H39: 73.52 | I39: 1 | J39: 73.52 | K39: 61.03
A40: 38 | B40: 蜀山区 | C40: 西园街道 | D40: 99060100325 | E40: 52.3 | F40: 面试室二 | G40: 17 | H40: 73.42 | I40: 1 | J40: 73.42 | K40: 60.75
A41: 39 | B41: 蜀山区 | C41: 西园街道 | D41: 99060100407 | E41: 49.3 | F41: 面试室一 | G41: 21 | H41: 76.94 | I41: 1 | J41: 76.94 | K41: 60.36
A42: 40 | B42: 蜀山区 | C42: 西园街道 | D42: 99060100119 | E42: 51.2 | F42: 面试室一 | G42: 2 | H42: 74.04 | I42: 1 | J42: 74.04 | K42: 60.34
A43: 41 | B43: 蜀山区 | C43: 西园街道 | D43: 99060100202 | E43: 50.6 | F43: 面试室一 | G43: 34 | H43: 74.9 | I43: 1 | J43: 74.9 | K43: 60.32
A44: 42 | B44: 蜀山区 | C44: 西园街道 | D44: 99060100223 | E44: 48.5 | F44: 面试室二 | G44: 7 | H44: 77.26 | I44: 1 | J44: 77.26 | K44: 60.00
A45: 43 | B45: 蜀山区 | C45: 西园街道 | D45: 99060100329 | E45: 49.5 | F45: 面试室一 | G45: 17 | H45: 75.72 | I45: 1 | J45: 75.72 | K45: 59.99
A46: 44 | B46: 蜀山区 | C46: 西园街道 | D46: 99060100110 | E46: 51.2 | F46: 面试室一 | G46: 16 | H46: 72.9 | I46: 1 | J46: 72.9 | K46: 59.88
A47: 45 | B47: 蜀山区 | C47: 西园街道 | D47: 99060100418 | E47: 47.2 | F47: 面试室一 | G47: 36 | H47: 77.44 | I47: 1 | J47: 77.44 | K47: 59.30
A48: 46 | B48: 蜀山区 | C48: 西园街道 | D48: 99060100413 | E48: 50.3 | F48: 面试室二 | G48: 13 | H48: 71.58 | I48: 1 | J48: 71.58 | K48: 58.81
A49: 47 | B49: 蜀山区 | C49: 西园街道 | D49: 99060100224 | E49: 45.3 | F49: 面试室一 | G49: 20 | H49: 79.02 | I49: 1 | J49: 79.02 | K49: 58.79
A50: 48 | B50: 蜀山区 | C50: 西园街道 | D50: 99060100205 | E50: 45.9 | F50: 面试室一 | G50: 31 | H50: 75.12 | I50: 1 | J50: 75.12 | K50: 57.59
A51: 49 | B51: 蜀山区 | C51: 西园街道 | D51: 99060100206 | E51: 47.2 | F51: 面试室一 | G51: 14 | H51: 73.04 | I51: 1 | J51: 73.04 | K51: 57.54
A52: 50 | B52: 蜀山区 | C52: 西园街道 | D52: 99060100213 | E52: 45.8 | F52: 面试室一 | G52: 32 | H52: 73.8 | I52: 1 | J52: 73.8 | K52: 57.00
A53: 51 | B53: 蜀山区 | C53: 西园街道 | D53: 99060100113 | E53: 43 | F53: 面试室二 | G53: 15 | H53: 77.9 | I53: 1 | J53: 77.9 | K53: 56.96
A54: 52 | B54: 蜀山区 | C54: 西园街道 | D54: 99060100304 | E54: 44.4 | F54: 面试室一 | G54: 4 | H54: 74.04 | I54: 1 | J54: 74.04 | K54: 56.26 | L54: 0
A55: 53 | B55: 蜀山区 | C55: 西园街道 | D55: 99060100406 | E55: 44.2 | F55: 面试室二 | G55: 14 | H55: 73.96 | I55: 1 | J55: 73.96 | K55: 56.10
A56: 54 | B56: 蜀山区 | C56: 西园街道 | D56: 99060100123 | E56: 44.2 | F56: 面试室一 | G56: 26 | H56: 72.18 | I56: 1 | J56: 72.18 | K56: 55.39
A57: 55 | B57: 蜀山区 | C57: 琥珀街道 | D57: 99060200224 | E57: 66.2 | F57: 面试室二 | G57: 8 | H57: 80.52 | I57: 0.99 | J57: =H57*I57 -> 79.71 | K57: =E57*0.6+J57*0.4 -> 71.61
A58: 56 | B58: 蜀山区 | C58: 琥珀街道 | D58: 99060200130 | E58: 69.7 | F58: 面试室三 | G58: 16 | H58: 72.68 | I58: 1.01 | J58: =H58*I58 -> 73.41 | K58: =E58*0.6+J58*0.4 -> 71.18
A59: 57 | B59: 蜀山区 | C59: 琥珀街道 | D59: 99060200303 | E59: 64 | F59: 面试室三 | G59: 36 | H59: 80.26 | I59: 1.01 | J59: =H59*I59 -> 81.06 | K59: =E59*0.6+J59*0.4 -> 70.83
A60: 58 | B60: 蜀山区 | C60: 琥珀街道 | D60: 99060200213 | E60: 64.4 | F60: 面试室二 | G60: 3 | H60: 77.6 | I60: 0.99 | J60: =H60*I60 -> 76.82 | K60: =E60*0.6+J60*0.4 -> 69.37
A61: 59 | B61: 蜀山区 | C61: 琥珀街道 | D61: 99060200107 | E61: 64.1 | F61: 面试室二 | G61: 11 | H61: 75.86 | I61: 0.99 | J61: =H61*I61 -> 75.10 | K61: =E61*0.6+J61*0.4 -> 68.50
A62: 60 | B62: 蜀山区 | C62: 琥珀街道 | D62: 99060200210 | E62: 64 | F62: 面试室三 | G62: 6 | H62: 73.08 | I62: 1.01 | J62: =H62*I62 -> 73.81 | K62: =E62*0.6+J62*0.4 -> 67.92
A63: 61 | B63: 蜀山区 | C63: 琥珀街道 | D63: 99060200103 | E63: 58.8 | F63: 面试室三 | G63: 24 | H63: 79.08 | I63: 1.01 | J63: =H63*I63 -> 79.87 | K63: =E63*0.6+J63*0.4 -> 67.23
A64: 62 | B64: 蜀山区 | C64: 琥珀街道 | D64: 99060200111 | E64: 62.1 | F64: 面试室三 | G64: 15 | H64: 71.9 | I64: 1.01 | J64: =H64*I64 -> 72.62 | K64: =E64*0.6+J64*0.4 -> 66.31
A65: 63 | B65: 蜀山区 | C65: 琥珀街道 | D65: 99060200117 | E65: 60.8 | F65: 面试室三 | G65: 21 | H65: 73.46 | I65: 1.01 | J65: =H65*I65 -> 74.19 | K65: =E65*0.6+J65*0.4 -> 66.16
A66: 64 | B66: 蜀山区 | C66: 琥珀街道 | D66: 99060200218 | E66: 57.7 | F66: 面试室三 | G66: 3 | H66: 77.94 | I66: 1.01 | J66: =H66*I66 -> 78.72 | K66: =E66*0.6+J66*0.4 -> 66.11
A67: 65 | B67: 蜀山区 | C67: 琥珀街道 | D67: 99060200105 | E67: 58.4 | F67: 面试室二 | G67: 6 | H67: 78.12 | I67: 0.99 | J67: 77.34 | K67: 65.98
A68: 66 | B68: 蜀山区 | C68: 琥珀街道 | D68: 99060101612 | E68: 61 | F68: 面试室三 | G68: 32 | H68: 72.12 | I68: 1.01 | J68: 72.84 | K68: 65.74
A69: 67 | B69: 蜀山区 | C69: 琥珀街道 | D69: 99060200311 | E69: 58.6 | F69: 面试室三 | G69: 13 | H69: 74.78 | I69: 1.01 | J69: 75.53 | K69: 65.37
A70: 68 | B70: 蜀山区 | C70: 琥珀街道 | D70: 99060101602 | E70: 59.1 | F70: 面试室三 | G70: 30 | H70: 73.9 | I70: 1.01 | J70: 74.64 | K70: 65.32
A71: 69 | B71: 蜀山区 | C71: 琥珀街道 | D71: 99060200227 | E71: 58.3 | F71: 面试室三 | G71: 26 | H71: 74.92 | I71: 1.01 | J71: 75.67 | K71: 65.25
A72: 70 | B72: 蜀山区 | C72: 琥珀街道 | D72: 99060101621 | E72: 59.5 | F72: 面试室三 | G72: 12 | H72: 71.56 | I72: 1.01 | J72: 72.28 | K72: 64.61
A73: 71 | B73: 蜀山区 | C73: 琥珀街道 | D73: 99060200118 | E73: 56.5 | F73: 面试室三 | G73: 5 | H73: 75.54 | I73: 1.01 | J73: 76.30 | K73: 64.42
A74: 72 | B74: 蜀山区 | C74: 琥珀街道 | D74: 99060200301 | E74: 55.7 | F74: 面试室三 | G74: 25 | H74: 76.58 | I74: 1.01 | J74: 77.35 | K74: 64.36
A75: 73 | B75: 蜀山区 | C75: 琥珀街道 | D75: 99060200116 | E75: 55.3 | F75: 面试室三 | G75: 4 | H75: 76.8 | I75: 1.01 | J75: 77.57 | K75: 64.21
A76: 74 | B76: 蜀山区 | C76: 琥珀街道 | D76: 99060101623 | E76: 55.4 | F76: 面试室二 | G76: 9 | H76: 77.98 | I76: 0.99 | J76: 77.20 | K76: 64.12
A77: 75 | B77: 蜀山区 | C77: 琥珀街道 | D77: 99060200212 | E77: 56.8 | F77: 面试室三 | G77: 1 | H77: 74.14 | I77: 1.01 | J77: 74.88 | K77: 64.03
A78: 76 | B78: 蜀山区 | C78: 琥珀街道 | D78: 99060101608 | E78: 59.1 | F78: 面试室二 | G78: 7 | H78: 71.6 | I78: 0.99 | J78: 70.88 | K78: 63.81
A79: 77 | B79: 蜀山区 | C79: 琥珀街道 | D79: 99060101606 | E79: 58.1 | F79: 面试室三 | G79: 34 | H79: 71.36 | I79: 1.01 | J79: 72.07 | K79: 63.69
A80: 78 | B80: 蜀山区 | C80: 琥珀街道 | D80: 99060101620 | E80: 57.3 | F80: 面试室三 | G80: 18 | H80: 72.36 | I80: 1.01 | J80: 73.08 | K80: 63.61
A81: 79 | B81: 蜀山区 | C81: 琥珀街道 | D81: 99060200124 | E81: 56.3 | F81: 面试室三 | G81: 27 | H81: 73.12 | I81: 1.01 | J81: 73.85 | K81: 63.32
A82: 80 | B82: 蜀山区 | C82: 琥珀街道 | D82: 99060200310 | E82: 55.5 | F82: 面试室三 | G82: 31 | H82: 73.16 | I82: 1.01 | J82: 73.89 | K82: 62.86
A83: 81 | B83: 蜀山区 | C83: 琥珀街道 | D83: 99060200230 | E83: 55.3 | F83: 面试室二 | G83: 4 | H83: 74.76 | I83: 0.99 | J83: 74.01 | K83: 62.78
A84: 82 | B84: 蜀山区 | C84: 琥珀街道 | D84: 99060200309 | E84: 55.6 | F84: 面试室三 | G84: 35 | H84: 72.54 | I84: 1.01 | J84: 73.27 | K84: 62.67
A85: 83 | B85: 蜀山区 | C85: 琥珀街道 | D85: 99060200209 | E85: 54.8 | F85: 面试室三 | G85: 33 | H85: 73.12 | I85: 1.01 | J85: 73.85 | K85: 62.42
A86: 84 | B86: 蜀山区 | C86: 琥珀街道 | D86: 99060200313 | E86: 56.2 | F86: 面试室三 | G86: 2 | H86: 70.66 | I86: 1.01 | J86: 71.37 | K86: 62.27
A87: 85 | B87: 蜀山区 | C87: 琥珀街道 | D87: 99060200122 | E87: 53.8 | F87: 面试室三 | G87: 22 | H87: 74.14 | I87: 1.01 | J87: 74.88 | K87: 62.23
A88: 86 | B88: 蜀山区 | C88: 琥珀街道 | D88: 99060200126 | E88: 52.8 | F88: 面试室二 | G88: 10 | H88: 76.02 | I88: 0.99 | J88: 75.26 | K88: 61.78
A89: 87 | B89: 蜀山区 | C89: 琥珀街道 | D89: 99060200221 | E89: 55 | F89: 面试室三 | G89: 37 | H89: 70.64 | I89: 1.01 | J89: 71.35 | K89: 61.54
A90: 88 | B90: 蜀山区 | C90: 琥珀街道 | D90: 99060101615 | E90: 49.7 | F90: 面试室二 | G90: 2 | H90: 80.02 | I90: 0.99 | J90: 79.22 | K90: 61.51
A91: 89 | B91: 蜀山区 | C91: 琥珀街道 | D91: 99060101528 | E91: 55 | F91: 面试室三 | G91: 8 | H91: 70.18 | I91: 1.01 | J91: 70.88 | K91: 61.35
A92: 90 | B92: 蜀山区 | C92: 琥珀街道 | D92: 99060200112 | E92: 52.4 | F92: 面试室三 | G92: 28 | H92: 73.94 | I92: 1.01 | J92: 74.68 | K92: 61.31
A93: 91 | B93: 蜀山区 | C93: 琥珀街道 | D93: 99060200127 | E93: 54.2 | F93: 面试室二 | G93: 15 | H93: 71.38 | I93: 0.99 | J93: 70.67 | K93: 60.79
A94: 92 | B94: 蜀山区 | C94: 琥珀街道 | D94: 99060200110 | E94: 54.1 | F94: 面试室二 | G94: 5 | H94: 71.08 | I94: 0.99 | J94: 70.37 | K94: 60.61
A95: 93 | B95: 蜀山区 | C95: 琥珀街道 | D95: 99060200201 | E95: 50.9 | F95: 面试室三 | G95: 10 | H95: 74.16 | I95: 1.01 | J95: 74.90 | K95: 60.50
A96: 94 | B96: 蜀山区 | C96: 琥珀街道 | D96: 99060200206 | E96: 50.3 | F96: 面试室三 | G96: 29 | H96: 74.66 | I96: 1.01 | J96: 75.41 | K96: 60.34
A97: 95 | B97: 蜀山区 | C97: 琥珀街道 | D97: 99060101617 | E97: 47.7 | F97: 面试室三 | G97: 7 | H97: 77.04 | I97: 1.01 | J97: 77.81 | K97: 59.74
A98: 96 | B98: 蜀山区 | C98: 琥珀街道 | D98: 99060200215 | E98: 48.6 | F98: 面试室二 | G98: 14 | H98: 77.14 | I98: 0.99 | J98: 76.37 | K98: 59.71
A99: 97 | B99: 蜀山区 | C99: 琥珀街道 | D99: 99060200208 | E99: 46.5 | F99: 面试室三 | G99: 14 | H99: 75.84 | I99: 1.01 | J99: 76.60 | K99: 58.54
A100: 98 | B100: 蜀山区 | C100: 琥珀街道 | D100: 99060101601 | E100: 47.9 | F100: 面试室二 | G100: 13 | H100: 74.28 | I100: 0.99 | J100: 73.54 | K100: 58.15
A101: 99 | B101: 蜀山区 | C101: 琥珀街道 | D101: 99060200306 | E101: 47.8 | F101: 面试室二 | G101: 1 | H101: 73.08 | I101: 0.99 | J101: 72.35 | K101: 57.62
A102: 100 | B102: 蜀山区 | C102: 琥珀街道 | D102: 99060200106 | E102: 44.2 | F102: 面试室三 | G102: 11 | H102: 76.4 | I102: 1.01 | J102: 77.16 | K102: 57.39
A103: 101 | B103: 蜀山区 | C103: 琥珀街道 | D103: 99060200102 | E103: 46.8 | F103: 面试室三 | G103: 23 | H103: 71.42 | I103: 1.01 | J103: 72.13 | K103: 56.93
A104: 102 | B104: 蜀山区 | C104: 琥珀街道 | D104: 99060200226 | E104: 44.8 | F104: 面试室三 | G104: 17 | H104: 72 | I104: 1.01 | J104: 72.72 | K104: 55.97
A105: 103 | B105: 蜀山区 | C105: 琥珀街道 | D105: 99060200113 | E105: 47.6 | F105: 面试室二 | G105: 12 | H105: 68.42 | I105: 0.99 | J105: 67.74 | K105: 55.65
A106: 104 | B106: 蜀山区 | C106: 五里墩街道 | D106: 99060100502 | E106: 64.7 | F106: 面试室四 | G106: 14 | H106: 78.92 | I106: 1.01 | J106: 79.71 | K106: 70.70
A107: 105 | B107: 蜀山区 | C107: 五里墩街道 | D107: 99060100516 | E107: 64.5 | F107: 面试室五 | G107: 13 | H107: 77.92 | I107: 0.99 | J107: 77.14 | K107: 69.56
A108: 106 | B108: 蜀山区 | C108: 五里墩街道 | D108: 99060100801 | E108: 63.6 | F108: 面试室四 | G108: 26 | H108: 75 | I108: 1.01 | J108: 75.75 | K108: 68.46
A109: 107 | B109: 蜀山区 | C109: 五里墩街道 | D109: 99060100712 | E109: 60 | F109: 面试室五 | G109: 20 | H109: 81.52 | I109: 0.99 | J109: 80.70 | K109: 68.28
A110: 108 | B110: 蜀山区 | C110: 五里墩街道 | D110: 99060100626 | E110: 62.4 | F110: 面试室五 | G110: 28 | H110: 77.64 | I110: 0.99 | J110: 76.86 | K110: 68.19
A111: 109 | B111: 蜀山区 | C111: 五里墩街道 | D111: 99060100706 | E111: 62.2 | F111: 面试室四 | G111: 12 | H111: 75.46 | I111: 1.01 | J111: 76.21 | K111: 67.81
A112: 110 | B112: 蜀山区 | C112: 五里墩街道 | D112: 99060100617 | E112: 58.9 | F112: 面试室四 | G112: 15 | H112: 79.54 | I112: 1.01 | J112: 80.34 | K112: 67.47
A113: 111 | B113: 蜀山区 | C113: 五里墩街道 | D113: 99060100901 | E113: 59.6 | F113: 面试室五 | G113: 14 | H113: 80 | I113: 0.99 | J113: 79.20 | K113: 67.44
A114: 112 | B114: 蜀山区 | C114: 五里墩街道 | D114: 99060100529 | E114: 57.6 | F114: 面试室五 | G114: 11 | H114: 82.84 | I114: 0.99 | J114: 82.01 | K114: 67.36
A115: 113 | B115: 蜀山区 | C115: 五里墩街道 | D115: 99060100813 | E115: 59.6 | F115: 面试室四 | G115: 10 | H115: 76.36 | I115: 1.01 | J115: 77.12 | K115: 66.61
A116: 114 | B116: 蜀山区 | C116: 五里墩街道 | D116: 99060100510 | E116: 58.2 | F116: 面试室四 | G116: 31 | H116: 78.02 | I116: 1.01 | J116: 78.80 | K116: 66.44
A117: 115 | B117: 蜀山区 | C117: 五里墩街道 | D117: 99060100528 | E117: 58.8 | F117: 面试室五 | G117: 4 | H117: 77.82 | I117: 0.99 | J117: 77.04 | K117: 66.10
A118: 116 | B118: 蜀山区 | C118: 五里墩街道 | D118: 99060100520 | E118: 55.5 | F118: 面试室五 | G118: 17 | H118: 80.7 | I118: 0.99 | J118: 79.89 | K118: 65.26
A119: 117 | B119: 蜀山区 | C119: 五里墩街道 | D119: 99060100613 | E119: 57.3 | F119: 面试室四 | G119: 3 | H119: 76.04 | I119: 1.01 | J119: 76.80 | K119: 65.10
A120: 118 | B120: 蜀山区 | C120: 五里墩街道 | D120: 99060100715 | E120: 57.1 | F120: 面试室四 | G120: 24 | H120: 76.04 | I120: 1.01 | J120: 76.80 | K120: 64.98
A121: 119 | B121: 蜀山区 | C121: 五里墩街道 | D121: 99060100723 | E121: 56.2 | F121: 面试室五 | G121: 3 | H121: 77.52 | I121: 0.99 | J121: 76.74 | K121: 64.42
A122: 120 | B122: 蜀山区 | C122: 五里墩街道 | D122: 99060100430 | E122: 57.3 | F122: 面试室五 | G122: 21 | H122: 75.84 | I122: 0.99 | J122: 75.08 | K122: 64.41
A123: 121 | B123: 蜀山区 | C123: 五里墩街道 | D123: 99060100708 | E123: 57.8 | F123: 面试室四 | G123: 6 | H123: 73.36 | I123: 1.01 | J123: 74.09 | K123: 64.32
A124: 122 | B124: 蜀山区 | C124: 五里墩街道 | D124: 99060100821 | E124: 55.5 | F124: 面试室五 | G124: 7 | H124: 78.06 | I124: 0.99 | J124: 77.28 | K124: 64.21
A125: 123 | B125: 蜀山区 | C125: 五里墩街道 | D125: 99060100720 | E125: 57.2 | F125: 面试室五 | G125: 22 | H125: 75.32 | I125: 0.99 | J125: 74.57 | K125: 64.15
A126: 124 | B126: 蜀山区 | C126: 五里墩街道 | D126: 99060100619 | E126: 57.1 | F126: 面试室四 | G126: 17 | H126: 73.86 | I126: 1.01 | J126: 74.60 | K126: 64.10
A127: 125 | B127: 蜀山区 | C127: 五里墩街道 | D127: 99060100802 | E127: 57 | F127: 面试室五 | G127: 1 | H127: 75.48 | I127: 0.99 | J127: 74.73 | K127: 64.09
A128: 126 | B128: 蜀山区 | C128: 五里墩街道 | D128: 99060100609 | E128: 53.8 | F128: 面试室四 | G128: 9 | H128: 78.56 | I128: 1.01 | J128: 79.35 | K128: 64.02
A129: 127 | B129: 蜀山区 | C129: 五里墩街道 | D129: 99060100725 | E129: 52.6 | F129: 面试室五 | G129: 16 | H129: 81.94 | I129: 0.99 | J129: 81.12 | K129: 64.01
A130: 128 | B130: 蜀山区 | C130: 五里墩街道 | D130: 99060100602 | E130: 54.6 | F130: 面试室四 | G130: 21 | H130: 76.56 | I130: 1.01 | J130: =H130*I130 -> 77.33 | K130: =E130*0.6+J130*0.4 -> 63.69
A131: 129 | B131: 蜀山区 | C131: 五里墩街道 | D131: 99060100601 | E131: 51.7 | F131: 面试室五 | G131: 10 | H131: 82.04 | I131: 0.99 | J131: 81.22 | K131: 63.51
A132: 130 | B132: 蜀山区 | C132: 五里墩街道 | D132: 99060100811 | E132: 53.6 | F132: 面试室四 | G132: 25 | H132: 77.52 | I132: 1.01 | J132: 78.30 | K132: 63.48
A133: 131 | B133: 蜀山区 | C133: 五里墩街道 | D133: 99060100423 | E133: 54.9 | F133: 面试室四 | G133: 7 | H133: 75.04 | I133: 1.01 | J133: 75.79 | K133: 63.26
A134: 132 | B134: 蜀山区 | C134: 五里墩街道 | D134: 99060100807 | E134: 57.3 | F134: 面试室五 | G134: 25 | H134: 72.66 | I134: 0.99 | J134: 71.93 | K134: 63.15
A135: 133 | B135: 蜀山区 | C135: 五里墩街道 | D135: 99060100518 | E135: 52.9 | F135: 面试室四 | G135: 13 | H135: 76.96 | I135: 1.01 | J135: 77.73 | K135: 62.83
A136: 134 | B136: 蜀山区 | C136: 五里墩街道 | D136: 99060100420 | E136: 55.8 | F136: 面试室四 | G136: 27 | H136: 72.38 | I136: 1.01 | J136: 73.10 | K136: 62.72
A137: 135 | B137: 蜀山区 | C137: 五里墩街道 | D137: 99060100422 | E137: 53 | F137: 面试室五 | G137: 12 | H137: 77.7 | I137: 0.99 | J137: 76.92 | K137: 62.57
A138: 136 | B138: 蜀山区 | C138: 五里墩街道 | D138: 99060100616 | E138: 55.1 | F138: 面试室五 | G138: 26 | H138: 73.98 | I138: 0.99 | J138: 73.24 | K138: 62.36
A139: 137 | B139: 蜀山区 | C139: 五里墩街道 | D139: 99060100623 | E139: 57.4 | F139: 面试室四 | G139: 4 | H139: 68.96 | I139: 1.01 | J139: 69.65 | K139: 62.30
A140: 138 | B140: 蜀山区 | C140: 五里墩街道 | D140: 99060100610 | E140: 55 | F140: 面试室五 | G140: 2 | H140: 73.9 | I140: 0.99 | J140: 73.16 | K140: 62.26
A141: 139 | B141: 蜀山区 | C141: 五里墩街道 | D141: 99060100426 | E141: 53 | F141: 面试室五 | G141: 6 | H141: 76.72 | I141: 0.99 | J141: 75.95 | K141: 62.18
A142: 140 | B142: 蜀山区 | C142: 五里墩街道 | D142: 99060100604 | E142: 49.6 | F142: 面试室五 | G142: 31 | H142: 81.8 | I142: 0.99 | J142: 80.98 | K142: 62.15
A143: 141 | B143: 蜀山区 | C143: 五里墩街道 | D143: 99060100618 | E143: 52.6 | F143: 面试室四 | G143: 11 | H143: 74.98 | I143: 1.01 | J143: 75.73 | K143: 61.85
A144: 142 | B144: 蜀山区 | C144: 五里墩街道 | D144: 99060100714 | E144: 51.9 | F144: 面试室五 | G144: 19 | H144: 77.5 | I144: 0.99 | J144: 76.73 | K144: 61.83
A145: 143 | B145: 蜀山区 | C145: 五里墩街道 | D145: 99060100820 | E145: 52.2 | F145: 面试室五 | G145: 30 | H145: 76.92 | I145: 0.99 | J145: 76.15 | K145: 61.78
A146: 144 | B146: 蜀山区 | C146: 五里墩街道 | D146: 99060100513 | E146: 52.8 | F146: 面试室四 | G146: 30 | H146: 74.48 | I146: 1.01 | J146: 75.22 | K146: 61.77
A147: 145 | B147: 蜀山区 | C147: 五里墩街道 | D147: 99060100718 | E147: 55.6 | F147: 面试室四 | G147: 19 | H147: 70.28 | I147: 1.01 | J147: 70.98 | K147: 61.75
A148: 146 | B148: 蜀山区 | C148: 五里墩街道 | D148: 99060100620 | E148: 53 | F148: 面试室四 | G148: 2 | H148: 74.06 | I148: 1.01 | J148: 74.80 | K148: 61.72
A149: 147 | B149: 蜀山区 | C149: 五里墩街道 | D149: 99060100707 | E149: 51.7 | F149: 面试室四 | G149: 33 | H149: 75.62 | I149: 1.01 | J149: 76.38 | K149: 61.57
A150: 148 | B150: 蜀山区 | C150: 五里墩街道 | D150: 99060100522 | E150: 51.5 | F150: 面试室四 | G150: 22 | H150: 74.64 | I150: 1.01 | J150: 75.39 | K150: 61.05
A151: 149 | B151: 蜀山区 | C151: 五里墩街道 | D151: 99060100822 | E151: 53.2 | F151: 面试室五 | G151: 8 | H151: 73.44 | I151: 0.99 | J151: 72.71 | K151: 61.00
A152: 150 | B152: 蜀山区 | C152: 五里墩街道 | D152: 99060100705 | E152: 51.6 | F152: 面试室五 | G152: 27 | H152: 75.8 | I152: 0.99 | J152: 75.04 | K152: 60.98
A153: 151 | B153: 蜀山区 | C153: 五里墩街道 | D153: 99060100527 | E153: 48.8 | F153: 面试室四 | G153: 29 | H153: 77.62 | I153: 1.01 | J153: 78.40 | K153: 60.64
A154: 152 | B154: 蜀山区 | C154: 五里墩街道 | D154: 99060100603 | E154: 49.9 | F154: 面试室四 | G154: 5 | H154: 75.88 | I154: 1.01 | J154: 76.64 | K154: 60.60
A155: 153 | B155: 蜀山区 | C155: 五里墩街道 | D155: 99060100726 | E155: 51.5 | F155: 面试室五 | G155: 23 | H155: 74.34 | I155: 0.99 | J155: 73.60 | K155: 60.34
A156: 154 | B156: 蜀山区 | C156: 五里墩街道 | D156: 99060100621 | E156: 50.6 | F156: 面试室五 | G156: 15 | H156: 75.2 | I156: 0.99 | J156: 74.45 | K156: 60.14
A157: 155 | B157: 蜀山区 | C157: 五里墩街道 | D157: 99060100526 | E157: 47.9 | F157: 面试室四 | G157: 23 | H157: 76.72 | I157: 1.01 | J157: 77.49 | K157: 59.73
A158: 156 | B158: 蜀山区 | C158: 五里墩街道 | D158: 99060100625 | E158: 54.4 | F158: 面试室四 | G158: 8 | H158: 66.74 | I158: 1.01 | J158: 67.41 | K158: 59.60
A159: 157 | B159: 蜀山区 | C159: 五里墩街道 | D159: 99060100830 | E159: 50.9 | F159: 面试室五 | G159: 5 | H159: 72.86 | I159: 0.99 | J159: 72.13 | K159: 59.39
A160: 158 | B160: 蜀山区 | C160: 五里墩街道 | D160: 99060100515 | E160: 47.7 | F160: 面试室四 | G160: 1 | H160: 75.32 | I160: 1.01 | J160: 76.07 | K160: 59.05
A161: 159 | B161: 蜀山区 | C161: 五里墩街道 | D161: 99060100728 | E161: 48.7 | F161: 面试室四 | G161: 32 | H161: 71.96 | I161: 1.01 | J161: 72.68 | K161: 58.29
A162: 160 | B162: 蜀山区 | C162: 五里墩街道 | D162: 99060100629 | E162: 45.5 | F162: 面试室五 | G162: 32 | H162: 77.54 | I162: 0.99 | J162: 76.76 | K162: 58.01
A163: 161 | B163: 蜀山区 | C163: 五里墩街道 | D163: 99060100524 | E163: 46.5 | F163: 面试室四 | G163: 18 | H163: 73.32 | I163: 1.01 | J163: 74.05 | K163: 57.52
A164: 162 | B164: 蜀山区 | C164: 五里墩街道 | D164: 99060100710 | E164: 46.3 | F164: 面试室五 | G164: 9 | H164: 73.72 | I164: 0.99 | J164: 72.98 | K164: 56.97
A165: 163 | B165: 蜀山区 | C165: 五里墩街道 | D165: 99060100713 | E165: 44.9 | F165: 面试室四 | G165: 20 | H165: 74.04 | I165: 1.01 | J165: 74.78 | K165: 56.85
A166: 164 | B166: 蜀山区 | C166: 五里墩街道 | D166: 99060100503 | E166: 45.2 | F166: 面试室四 | G166: 28 | H166: 73.36 | I166: 1.01 | J166: 74.09 | K166: 56.76
A167: 165 | B167: 蜀山区 | C167: 五里墩街道 | D167: 99060100425 | E167: 45.6 | F167: 面试室四 | G167: 16 | H167: 72.58 | I167: 1.01 | J167: 73.31 | K167: 56.68
A168: 166 | B168: 蜀山区 | C168: 五里墩街道 | D168: 99060100703 | E168: 43.4 | F168: 面试室五 | G168: 18 | H168: 74.76 | I168: 0.99 | J168: 74.01 | K168: 55.64
A169: 167 | B169: 蜀山区 | C169: 五里墩街道 | D169: 99060100828 | E169: 41.6 | F169: 面试室五 | G169: 29 | H169: 76.42 | I169: 0.99 | J169: 75.66 | K169: 55.22
A170: 168 | B170: 蜀山区 | C170: 五里墩街道 | D170: 99060100812 | E170: 44.9 | F170: 面试室五 | G170: 24 | H170: 69.56 | I170: 0.99 | J170: 68.86 | K170: 54.49
A171: 169 | B171: 蜀山区 | C171: 三里庵街道 | D171: 99060101305 | E171: 63.3 | F171: 面试室六 | G171: 6 | H171: 78.56 | I171: / | J171: / | K171: =E171*0.6+H171*0.4 -> 69.40
A172: 170 | B172: 蜀山区 | C172: 三里庵街道 | D172: 99060101212 | E172: 63.7 | F172: 面试室六 | G172: 19 | H172: 77.88 | I172: / | J172: / | K172: 69.37
A173: 171 | B173: 蜀山区 | C173: 三里庵街道 | D173: 99060101221 | E173: 61.5 | F173: 面试室六 | G173: 18 | H173: 79.26 | I173: / | J173: / | K173: 68.60
A174: 172 | B174: 蜀山区 | C174: 三里庵街道 | D174: 99060101414 | E174: 62.7 | F174: 面试室六 | G174: 8 | H174: 73.94 | I174: / | J174: / | K174: 67.20
A175: 173 | B175: 蜀山区 | C175: 三里庵街道 | D175: 99060101519 | E175: 59.2 | F175: 面试室六 | G175: 29 | H175: 78.24 | I175: / | J175: / | K175: 66.82
A176: 174 | B176: 蜀山区 | C176: 三里庵街道 | D176: 99060101301 | E176: 62.3 | F176: 面试室六 | G176: 26 | H176: 73.32 | I176: / | J176: / | K176: 66.71
A177: 175 | B177: 蜀山区 | C177: 三里庵街道 | D177: 99060101501 | E177: 58.6 | F177: 面试室六 | G177: 16 | H177: 77.6 | I177: / | J177: / | K177: 66.20
A178: 176 | B178: 蜀山区 | C178: 三里庵街道 | D178: 99060101215 | E178: 55.9 | F178: 面试室六 | G178: 37 | H178: 81.02 | I178: / | J178: / | K178: 65.95
A179: 177 | B179: 蜀山区 | C179: 三里庵街道 | D179: 99060101210 | E179: 59.1 | F179: 面试室六 | G179: 31 | H179: 74.82 | I179: / | J179: / | K179: 65.39
A180: 178 | B180: 蜀山区 | C180: 三里庵街道 | D180: 99060101402 | E180: 57.8 | F180: 面试室六 | G180: 2 | H180: 76.76 | I180: / | J180: / | K180: 65.38
A181: 179 | B181: 蜀山区 | C181: 三里庵街道 | D181: 99060101230 | E181: 56.2 | F181: 面试室六 | G181: 28 | H181: 77.96 | I181: / | J181: / | K181: 64.90
A182: 180 | B182: 蜀山区 | C182: 三里庵街道 | D182: 99060101413 | E182: 54.9 | F182: 面试室六 | G182: 33 | H182: 79.54 | I182: / | J182: / | K182: 64.76
A183: 181 | B183: 蜀山区 | C183: 三里庵街道 | D183: 99060101422 | E183: 59 | F183: 面试室六 | G183: 32 | H183: 73.12 | I183: / | J183: / | K183: 64.65
A184: 182 | B184: 蜀山区 | C184: 三里庵街道 | D184: 99060101502 | E184: 58.5 | F184: 面试室六 | G184: 17 | H184: 73.78 | I184: / | J184: / | K184: 64.61
A185: 183 | B185: 蜀山区 | C185: 三里庵街道 | D185: 99060101218 | E185: 55.8 | F185: 面试室六 | G185: 25 | H185: 75.9 | I185: / | J185: / | K185: 63.84
A186: 184 | B186: 蜀山区 | C186: 三里庵街道 | D186: 99060101302 | E186: 56.9 | F186: 面试室六 | G186: 21 | H186: 71.6 | I186: / | J186: / | K186: 62.78
A187: 185 | B187: 蜀山区 | C187: 三里庵街道 | D187: 99060101427 | E187: 55.2 | F187: 面试室六 | G187: 13 | H187: 73.84 | I187: / | J187: / | K187: 62.66
A188: 186 | B188: 蜀山区 | C188: 三里庵街道 | D188: 99060101304 | E188: 56.8 | F188: 面试室六 | G188: 24 | H188: 70.74 | I188: / | J188: / | K188: 62.38
A189: 187 | B189: 蜀山区 | C189: 三里庵街道 | D189: 99060101220 | E189: 55.6 | F189: 面试室六 | G189: 27 | H189: 71.92 | I189: / | J189: / | K189: 62.13
A190: 188 | B190: 蜀山区 | C190: 三里庵街道 | D190: 99060101521 | E190: 56.2 | F190: 面试室六 | G190: 30 | H190: 70.6 | I190: / | J190: / | K190: 61.96
A191: 189 | B191: 蜀山区 | C191: 三里庵街道 | D191: 99060101217 | E191: 52.8 | F191: 面试室六 | G191: 10 | H191: 72.86 | I191: / | J191: / | K191: 60.82
A192: 190 | B192: 蜀山区 | C192: 三里庵街道 | D192: 99060101424 | E192: 50.6 | F192: 面试室六 | G192: 36 | H192: 74.74 | I192: / | J192: / | K192: 60.26
A193: 191 | B193: 蜀山区 | C193: 三里庵街道 | D193: 99060101510 | E193: 50.8 | F193: 面试室六 | G193: 20 | H193: 73.06 | I193: / | J193: / | K193: 59.70
A194: 192 | B194: 蜀山区 | C194: 三里庵街道 | D194: 99060101326 | E194: 48.1 | F194: 面试室六 | G194: 12 | H194: 76.24 | I194: / | J194: / | K194: 59.36
A195: 193 | B195: 蜀山区 | C195: 三里庵街道 | D195: 99060101222 | E195: 50.4 | F195: 面试室六 | G195: 35 | H195: 72.66 | I195: / | J195: / | K195: 59.30
A196: 194 | B196: 蜀山区 | C196: 三里庵街道 | D196: 99060101322 | E196: 50.6 | F196: 面试室六 | G196: 9 | H196: 72.34 | I196: / | J196: / | K196: 59.30
A197: 195 | B197: 蜀山区 | C197: 三里庵街道 | D197: 99060101208 | E197: 49.3 | F197: 面试室六 | G197: 14 | H197: 72.86 | I197: / | J197: / | K197: 58.72
A198: 196 | B198: 蜀山区 | C198: 三里庵街道 | D198: 99060101313 | E198: 48.8 | F198: 面试室六 | G198: 22 | H198: 73.22 | I198: / | J198: / | K198: 58.57
A199: 197 | B199: 蜀山区 | C199: 三里庵街道 | D199: 99060101512 | E199: 49.5 | F199: 面试室六 | G199: 23 | H199: 71.54 | I199: / | J199: / | K199: 58.32
A200: 198 | B200: 蜀山区 | C200: 三里庵街道 | D200: 99060101223 | E200: 49.1 | F200: 面试室六 | G200: 15 | H200: 71.34 | I200: / | J200: / | K200: 58.00
... 7 more rows
